[Event "Late-Titled-Tuesday-Blitz-November-28-2023"]
[Site "Chess.com"]
[Date "2023.11.28"]
[Round "4"]
[White "Abduzhaparov"]
[Black "Koksal06"]
[Result "0-1"]
[WhiteElo "2403"]
[BlackElo "2629"]
[TimeControl "180+1"]
[EndTime "14:36:57 PST"]
[Termination "Koksal06 won by checkmate"]

1. Nf3 {[%clk 0:03:00.9]} 1... d5 {[%clk 0:02:59.9]} 2. c4 {[%clk 0:03:01.8]}
2... d4 {[%clk 0:02:58.4]} 3. e3 {[%clk 0:03:02.2]} 3... Nc6 {[%clk 0:02:58.8]}
4. b4 {[%clk 0:03:02.7]} 4... dxe3 {[%clk 0:02:58.1]} 5. fxe3 {[%clk 0:03:03.6]}
5... Nxb4 {[%clk 0:02:58.2]} 6. d4 {[%clk 0:03:04]} 6... e6 {[%clk 0:02:02]} 7.
Nc3 {[%clk 0:03:03.4]} 7... Nf6 {[%clk 0:02:00.8]} 8. Ba3 {[%clk 0:02:54.4]}
8... c5 {[%clk 0:01:54.4]} 9. Bb2 {[%clk 0:02:26.7]} 9... Be7 {[%clk 0:01:47.3]}
10. a3 {[%clk 0:02:26.4]} 10... Nc6 {[%clk 0:01:44.3]} 11. d5 {[%clk 0:02:26.5]}
11... Na5 {[%clk 0:01:43.8]} 12. e4 {[%clk 0:02:22.7]} 12... exd5 {[%clk
0:01:43.5]} 13. cxd5 {[%clk 0:02:20.6]} 13... O-O {[%clk 0:01:39.1]} 14. e5
{[%clk 0:02:20.3]} 14... Ng4 {[%clk 0:01:39.1]} 15. d6 {[%clk 0:02:17.7]} 15...
Bg5 {[%clk 0:01:37.3]} 16. Ne4 {[%clk 0:02:07]} 16... Bf4 {[%clk 0:01:28.4]} 17.
g3 {[%clk 0:01:58.3]} 17... Bh6 {[%clk 0:01:28.4]} 18. Bb5 {[%clk 0:01:38]}
18... Ne3 {[%clk 0:01:25.7]} 19. Qe2 {[%clk 0:01:15.4]} 19... Bf5 {[%clk
0:01:20.9]} 20. Nfd2 {[%clk 0:01:01.1]} 20... Nc2+ {[%clk 0:01:15.9]} 21. Kf2
{[%clk 0:00:52.5]} 21... Nxa1 {[%clk 0:01:07.9]} 22. Bxa1 {[%clk 0:00:53.4]}
22... c4 {[%clk 0:00:34.4]} 23. Kg2 {[%clk 0:00:52.9]} 23... a6 {[%clk
0:00:27.7]} 24. Bxc4 {[%clk 0:00:47.2]} 24... Nxc4 {[%clk 0:00:27.6]} 25. Nxc4
{[%clk 0:00:48.1]} 25... Rc8 {[%clk 0:00:24.5]} 26. Rf1 {[%clk 0:00:44.2]} 26...
Be6 {[%clk 0:00:24.5]} 27. Ne3 {[%clk 0:00:41.8]} 27... Bxe3 {[%clk 0:00:20]}
28. Qxe3 {[%clk 0:00:41.5]} 28... Rc2+ {[%clk 0:00:20.7]} 29. Kg1 {[%clk
0:00:38.2]} 29... Qc8 {[%clk 0:00:17.9]} 30. Qg5 {[%clk 0:00:28.7]} 30... Qc6
{[%clk 0:00:18]} 31. Re1 {[%clk 0:00:20.6]} 31... Rc8 {[%clk 0:00:15.7]} 32.
Nf6+ {[%clk 0:00:17.9]} 32... Kh8 {[%clk 0:00:15.8]} 33. Qh4 {[%clk 0:00:17.1]}
33... h6 {[%clk 0:00:14.7]} 34. Ng4 {[%clk 0:00:07.7]} 34... Qg2# {[%clk
0:00:13.9]} 0-1

[Event "Late-Titled-Tuesday-Blitz-November-28-2023"]
[Site "Chess.com"]
[Date "2023.11.28"]
[Round "4"]
[White "Jaka_Brilej"]
[Black "Matthew_Clarke"]
[Result "1-0"]
[WhiteElo "2465"]
[BlackElo "2255"]
[TimeControl "180+1"]
[EndTime "14:36:58 PST"]
[Termination "Jaka_Brilej won by resignation"]

1. d4 {[%clk 0:02:51.9]} 1... Nf6 {[%clk 0:02:59]} 2. Nc3 {[%clk 0:02:51.1]}
2... d5 {[%clk 0:02:57.6]} 3. Bg5 {[%clk 0:02:51.1]} 3... e6 {[%clk 0:02:48.5]}
4. e4 {[%clk 0:02:42.3]} 4... dxe4 {[%clk 0:02:45.4]} 5. Nxe4 {[%clk 0:02:41]}
5... Be7 {[%clk 0:02:44.6]} 6. Bxf6 {[%clk 0:02:39.6]} 6... gxf6 {[%clk
0:02:40.9]} 7. Nf3 {[%clk 0:02:36.7]} 7... f5 {[%clk 0:02:39.5]} 8. Nc3 {[%clk
0:02:36.3]} 8... Bf6 {[%clk 0:02:22.3]} 9. Qd2 {[%clk 0:02:30.2]} 9... c5 {[%clk
0:01:55.4]} 10. Bb5+ {[%clk 0:02:21.8]} 10... Bd7 {[%clk 0:01:47.4]} 11. dxc5
{[%clk 0:02:01.2]} 11... Bxb5 {[%clk 0:01:45.6]} 12. Qxd8+ {[%clk 0:02:00.4]}
12... Kxd8 {[%clk 0:01:44.9]} 13. Nxb5 {[%clk 0:01:58.2]} 13... Na6 {[%clk
0:01:29.5]} 14. O-O-O+ {[%clk 0:01:44]} 14... Ke7 {[%clk 0:01:27.1]} 15. Rhe1
{[%clk 0:01:30.2]} 15... Nxc5 {[%clk 0:01:14.8]} 16. Nd6 {[%clk 0:01:29.7]}
16... Kf8 {[%clk 0:00:59.3]} 17. Ne5 {[%clk 0:01:15.8]} 17... Rg8 {[%clk
0:00:31.1]} 18. g3 {[%clk 0:01:11.6]} 18... Bxe5 {[%clk 0:00:17.1]} 19. Rxe5
{[%clk 0:01:12.5]} 19... b6 {[%clk 0:00:14.6]} 20. b4 {[%clk 0:01:00]} 20... Nd7
{[%clk 0:00:14.2]} 21. Re3 {[%clk 0:00:59.7]} 21... Nf6 {[%clk 0:00:13.3]} 22.
c4 {[%clk 0:00:54.4]} 22... Ke7 {[%clk 0:00:12.3]} 23. Nxf5+ {[%clk 0:00:53.5]}
23... Kf8 {[%clk 0:00:12.1]} 24. Nd6 {[%clk 0:00:53.8]} 24... Ke7 {[%clk
0:00:12.1]} 25. h3 {[%clk 0:00:45.4]} 25... a5 {[%clk 0:00:07]} 26. b5 {[%clk
0:00:18.6]} 26... Rg5 {[%clk 0:00:06.9]} 27. Kb2 {[%clk 0:00:15.9]} 27... Rc5
{[%clk 0:00:07]} 28. g4 {[%clk 0:00:15.6]} 28... Kf8 {[%clk 0:00:03.4]} 29. f4
{[%clk 0:00:15.2]} 29... Re8 {[%clk 0:00:02.9]} 1-0

[Event "Late-Titled-Tuesday-Blitz-November-28-2023"]
[Site "Chess.com"]
[Date "2023.11.28"]
[Round "4"]
[White "kleber2007"]
[Black "1800_strength"]
[Result "0-1"]
[WhiteElo "2388"]
[BlackElo "2790"]
[TimeControl "180+1"]
[EndTime "14:37:03 PST"]
[Termination "1800_strength won on time"]

1. Nf3 {[%clk 0:02:58]} 1... g5 {[%clk 0:03:00.9]} 2. Nxg5 {[%clk 0:02:56.5]}
2... e5 {[%clk 0:03:01.3]} 3. d4 {[%clk 0:02:52.9]} 3... h6 {[%clk 0:03:01.1]}
4. Nxf7 {[%clk 0:02:22.7]} 4... Kxf7 {[%clk 0:03:02]} 5. e4 {[%clk 0:02:23]}
5... Qh4 {[%clk 0:02:46.4]} 6. Bc4+ {[%clk 0:02:15.6]} 6... Ke8 {[%clk
0:02:35.2]} 7. Nc3 {[%clk 0:02:13.5]} 7... Nc6 {[%clk 0:02:12.8]} 8. g3 {[%clk
0:01:41.5]} 8... Qf6 {[%clk 0:01:49.9]} 9. Nd5 {[%clk 0:01:40]} 9... Qg6 {[%clk
0:01:43.8]} 10. O-O {[%clk 0:01:27.5]} 10... Bd6 {[%clk 0:01:41.5]} 11. f4
{[%clk 0:01:16.8]} 11... Nxd4 {[%clk 0:01:35.4]} 12. Be3 {[%clk 0:00:56.7]}
12... c6 {[%clk 0:00:55.9]} 13. Bxd4 {[%clk 0:00:23.7]} 13... cxd5 {[%clk
0:00:55.1]} 14. fxe5 {[%clk 0:00:23.5]} 14... dxc4 {[%clk 0:00:47.3]} 15. exd6
{[%clk 0:00:23.5]} 15... Rh7 {[%clk 0:00:47.7]} 16. Rf4 {[%clk 0:00:18.1]} 16...
Rf7 {[%clk 0:00:45.2]} 17. Qf1 {[%clk 0:00:16]} 17... b6 {[%clk 0:00:43.7]} 18.
Qf3 {[%clk 0:00:14.3]} 18... h5 {[%clk 0:00:41.9]} 19. Rf1 {[%clk 0:00:14.7]}
19... Nh6 {[%clk 0:00:42.5]} 20. e5 {[%clk 0:00:12.1]} 20... Rb8 {[%clk
0:00:39.9]} 21. e6 {[%clk 0:00:12.4]} 21... dxe6 {[%clk 0:00:38.4]} 22. Qc6+
{[%clk 0:00:11.8]} 22... Bd7 {[%clk 0:00:38.6]} 23. Qc7 {[%clk 0:00:10.5]} 23...
Rc8 {[%clk 0:00:38.7]} 24. Qxa7 {[%clk 0:00:10.5]} 24... Rxf4 {[%clk 0:00:35.2]}
25. Rxf4 {[%clk 0:00:09.9]} 25... Nf5 {[%clk 0:00:35.9]} 26. Be5 {[%clk
0:00:08.5]} 26... c3 {[%clk 0:00:29.3]} 27. bxc3 {[%clk 0:00:07.9]} 27... h4
{[%clk 0:00:18.8]} 28. g4 {[%clk 0:00:06.1]} 28... h3 {[%clk 0:00:19.3]} 29.
Qxb6 {[%clk 0:00:05.4]} 29... Nh4 {[%clk 0:00:17.9]} 30. Qf2 {[%clk 0:00:04.3]}
30... Nf5 {[%clk 0:00:15.3]} 31. Kf1 {[%clk 0:00:03.9]} 31... Bb5+ {[%clk
0:00:13.7]} 32. Ke1 {[%clk 0:00:03.1]} 32... Nh6 {[%clk 0:00:09.3]} 0-1

[Event "Late-Titled-Tuesday-Blitz-November-28-2023"]
[Site "Chess.com"]
[Date "2023.11.28"]
[Round "4"]
[White "MNyuyu"]
[Black "TheMagician"]
[Result "1-0"]
[WhiteElo "2479"]
[BlackElo "2296"]
[TimeControl "180+1"]
[EndTime "14:37:03 PST"]
[Termination "MNyuyu won on time"]

1. d4 {[%clk 0:03:00.9]} 1... Nf6 {[%clk 0:02:59.3]} 2. c4 {[%clk 0:03:01]} 2...
g6 {[%clk 0:02:57]} 3. Nc3 {[%clk 0:03:00.7]} 3... Bg7 {[%clk 0:02:56.3]} 4. e4
{[%clk 0:03:00.2]} 4... d6 {[%clk 0:02:56.6]} 5. h3 {[%clk 0:03:00.9]} 5... O-O
{[%clk 0:02:56.8]} 6. Be3 {[%clk 0:03:00.7]} 6... Nc6 {[%clk 0:02:56.7]} 7. Nf3
{[%clk 0:02:59.7]} 7... e5 {[%clk 0:02:53.9]} 8. Qd2 {[%clk 0:02:59.3]} 8...
exd4 {[%clk 0:02:52.7]} 9. Nxd4 {[%clk 0:02:59.4]} 9... Bd7 {[%clk 0:02:51.1]}
10. Be2 {[%clk 0:02:58]} 10... Re8 {[%clk 0:02:50.8]} 11. f3 {[%clk 0:02:57.7]}
11... Nxd4 {[%clk 0:02:45.5]} 12. Bxd4 {[%clk 0:02:57]} 12... Nh5 {[%clk
0:02:45.6]} 13. O-O {[%clk 0:02:54.4]} 13... Be6 {[%clk 0:02:26.2]} 14. Rfd1
{[%clk 0:02:51.2]} 14... a6 {[%clk 0:02:02.9]} 15. Bf1 {[%clk 0:02:45.7]} 15...
Qh4 {[%clk 0:01:55.1]} 16. Bxg7 {[%clk 0:02:34.5]} 16... Kxg7 {[%clk 0:01:53.9]}
17. Nd5 {[%clk 0:02:34.2]} 17... Bxd5 {[%clk 0:01:42.1]} 18. cxd5 {[%clk
0:02:32.3]} 18... Re7 {[%clk 0:01:24.1]} 19. Rac1 {[%clk 0:02:30.4]} 19... Rae8
{[%clk 0:01:22.4]} 20. Rc4 {[%clk 0:02:23.4]} 20... Rd7 {[%clk 0:01:04.6]} 21.
Rdc1 {[%clk 0:02:21.1]} 21... Qd8 {[%clk 0:01:04.3]} 22. Qc3+ {[%clk 0:02:20.1]}
22... Kg8 {[%clk 0:01:03.1]} 23. Rxc7 {[%clk 0:02:19.9]} 23... Rxc7 {[%clk
0:01:00.2]} 24. Qxc7 {[%clk 0:02:19.1]} 24... Qg5 {[%clk 0:01:00.8]} 25. Rc3
{[%clk 0:02:11.2]} 25... Qd2 {[%clk 0:00:58]} 26. Qb6 {[%clk 0:01:55.4]} 26...
f5 {[%clk 0:00:51]} 27. Qe3 {[%clk 0:01:41.6]} 27... Qxb2 {[%clk 0:00:48.6]} 28.
Rb3 {[%clk 0:01:36.4]} 28... Qe5 {[%clk 0:00:37.5]} 29. Rxb7 {[%clk 0:01:27.1]}
29... Qxd5 {[%clk 0:00:23.8]} 30. Qa7 {[%clk 0:01:11.5]} 30... fxe4 {[%clk
0:00:18.1]} 31. Qxa6 {[%clk 0:01:04.8]} 31... Qc5+ {[%clk 0:00:16.7]} 32. Kh1
{[%clk 0:01:04.2]} 32... exf3 {[%clk 0:00:16.3]} 33. Qc4+ {[%clk 0:01:03.8]}
33... Qxc4 {[%clk 0:00:16]} 34. Bxc4+ {[%clk 0:01:04.7]} 34... Kh8 {[%clk
0:00:13]} 35. gxf3 {[%clk 0:01:05.2]} 35... Nf4 {[%clk 0:00:10.7]} 36. Kh2
{[%clk 0:00:58.6]} 36... d5 {[%clk 0:00:11]} 37. Bb3 {[%clk 0:00:57.6]} 37... g5
{[%clk 0:00:10.8]} 38. Kg3 {[%clk 0:00:57.5]} 38... Re2 {[%clk 0:00:07.3]} 39.
Kg4 {[%clk 0:00:55]} 39... Rg2+ {[%clk 0:00:07.1]} 40. Kf5 {[%clk 0:00:54.7]}
40... h5 {[%clk 0:00:01.5]} 41. Bxd5 {[%clk 0:00:39.2]} 1-0

[Event "Late-Titled-Tuesday-Blitz-November-28-2023"]
[Site "Chess.com"]
[Date "2023.11.28"]
[Round "4"]
[White "qeeqer"]
[Black "Zhigalko_Sergei"]
[Result "1-0"]
[WhiteElo "2596"]
[BlackElo "2896"]
[TimeControl "180+1"]
[EndTime "14:37:04 PST"]
[Termination "qeeqer won on time"]

1. b3 {[%clk 0:03:00.9]} 1... e5 {[%clk 0:02:57.8]} 2. Bb2 {[%clk 0:03:00.6]}
2... d6 {[%clk 0:02:55.1]} 3. e3 {[%clk 0:03:00.1]} 3... Nf6 {[%clk 0:02:55.3]}
4. d4 {[%clk 0:02:57.9]} 4... exd4 {[%clk 0:02:55.2]} 5. Qxd4 {[%clk 0:02:53.2]}
5... Nc6 {[%clk 0:02:53.5]} 6. Qd1 {[%clk 0:02:43.8]} 6... g6 {[%clk 0:02:46.6]}
7. Nf3 {[%clk 0:02:42.8]} 7... Bg7 {[%clk 0:02:46.6]} 8. c4 {[%clk 0:02:38.9]}
8... O-O {[%clk 0:02:46.3]} 9. Be2 {[%clk 0:02:38.2]} 9... Bf5 {[%clk
0:02:42.5]} 10. O-O {[%clk 0:02:32.8]} 10... Re8 {[%clk 0:02:42.3]} 11. Nd4
{[%clk 0:02:15.7]} 11... Nxd4 {[%clk 0:02:26.2]} 12. Bxd4 {[%clk 0:02:15.3]}
12... Ne4 {[%clk 0:02:14.5]} 13. Bxg7 {[%clk 0:02:12.9]} 13... Kxg7 {[%clk
0:02:15.4]} 14. Qd4+ {[%clk 0:02:04]} 14... Kg8 {[%clk 0:01:51.7]} 15. Bf3
{[%clk 0:01:49.5]} 15... Qg5 {[%clk 0:01:31.9]} 16. Nc3 {[%clk 0:01:32.4]} 16...
c5 {[%clk 0:00:44.3]} 17. Nxe4 {[%clk 0:01:31.8]} 17... Bxe4 {[%clk 0:00:42.2]}
18. Qd1 {[%clk 0:01:30.9]} 18... Rad8 {[%clk 0:00:35.4]} 19. Bxe4 {[%clk
0:01:27.1]} 19... Rxe4 {[%clk 0:00:36.3]} 20. Qf3 {[%clk 0:01:26.9]} 20... d5
{[%clk 0:00:35]} 21. Rfd1 {[%clk 0:01:21.5]} 21... Re5 {[%clk 0:00:22.7]} 22.
cxd5 {[%clk 0:00:54]} 22... Rexd5 {[%clk 0:00:21.8]} 23. Rxd5 {[%clk 0:00:52.8]}
23... Qxd5 {[%clk 0:00:22.7]} 24. Qxd5 {[%clk 0:00:19.3]} 24... Rxd5 {[%clk
0:00:23.6]} 25. Rc1 {[%clk 0:00:18.5]} 25... Rd2 {[%clk 0:00:21.7]} 26. a4
{[%clk 0:00:17.9]} 26... b6 {[%clk 0:00:11.8]} 27. g4 {[%clk 0:00:14.9]} 27...
Kf8 {[%clk 0:00:06.1]} 28. Rc3 {[%clk 0:00:10.6]} 28... Ke7 {[%clk 0:00:03.6]}
29. Kg2 {[%clk 0:00:10.7]} 29... Kd6 {[%clk 0:00:02.7]} 30. Kf3 {[%clk
0:00:09.8]} 30... Kd5 {[%clk 0:00:01.7]} 31. h4 {[%clk 0:00:09]} 1-0

[Event "Late-Titled-Tuesday-Blitz-November-28-2023"]
[Site "Chess.com"]
[Date "2023.11.28"]
[Round "4"]
[White "Dr_crypt"]
[Black "laziestwin"]
[Result "1-0"]
[WhiteElo "2385"]
[BlackElo "2595"]
[TimeControl "180+1"]
[EndTime "14:37:04 PST"]
[Termination "Dr_crypt won on time"]

1. d4 {[%clk 0:02:59.8]} 1... Nf6 {[%clk 0:02:58.8]} 2. Nf3 {[%clk 0:02:54]}
2... d5 {[%clk 0:02:56.3]} 3. Nbd2 {[%clk 0:02:52.4]} 3... g6 {[%clk 0:02:52.3]}
4. c4 {[%clk 0:02:48.9]} 4... c5 {[%clk 0:02:45.2]} 5. dxc5 {[%clk 0:02:47.2]}
5... d4 {[%clk 0:02:44.9]} 6. Nb3 {[%clk 0:02:45.4]} 6... Nc6 {[%clk 0:02:20.8]}
7. e3 {[%clk 0:02:45.3]} 7... dxe3 {[%clk 0:01:56.3]} 8. Qxd8+ {[%clk
0:02:37.2]} 8... Nxd8 {[%clk 0:01:57.2]} 9. Bxe3 {[%clk 0:02:36.6]} 9... Bg7
{[%clk 0:01:57.9]} 10. h3 {[%clk 0:02:31.2]} 10... O-O {[%clk 0:01:57.5]} 11.
O-O-O {[%clk 0:02:30.8]} 11... Nc6 {[%clk 0:01:56.5]} 12. Be2 {[%clk 0:02:25.3]}
12... Bf5 {[%clk 0:01:55.6]} 13. Nfd4 {[%clk 0:02:23.9]} 13... Bd7 {[%clk
0:01:35.1]} 14. Bf3 {[%clk 0:01:59.3]} 14... Rac8 {[%clk 0:01:29.3]} 15. Nxc6
{[%clk 0:01:57]} 15... Bxc6 {[%clk 0:01:30.2]} 16. Bxc6 {[%clk 0:01:56.7]} 16...
Rxc6 {[%clk 0:01:31.1]} 17. Na5 {[%clk 0:01:42.8]} 17... Rc7 {[%clk 0:01:27.3]}
18. b4 {[%clk 0:01:42.6]} 18... Ne4 {[%clk 0:01:25.1]} 19. a3 {[%clk 0:01:34.8]}
19... f5 {[%clk 0:01:07.3]} 20. Kc2 {[%clk 0:01:22.1]} 20... f4 {[%clk
0:01:03.6]} 21. Bd4 {[%clk 0:01:17.8]} 21... e5 {[%clk 0:01:03]} 22. Rhe1 {[%clk
0:01:16.5]} 22... exd4 {[%clk 0:00:46.2]} 23. Rxe4 {[%clk 0:01:16.1]} 23... f3
{[%clk 0:00:46.4]} 24. g3 {[%clk 0:01:11.1]} 24... Rd8 {[%clk 0:00:38.8]} 25.
Kd3 {[%clk 0:01:10.7]} 25... h5 {[%clk 0:00:16.7]} 26. Rde1 {[%clk 0:01:09.4]}
26... g5 {[%clk 0:00:15.6]} 27. Re7 {[%clk 0:01:03.2]} 27... Rdd7 {[%clk
0:00:13.6]} 28. Rxd7 {[%clk 0:01:01.7]} 28... Rxd7 {[%clk 0:00:14.5]} 29. c6
{[%clk 0:01:00.9]} 29... bxc6 {[%clk 0:00:13.8]} 30. Nxc6 {[%clk 0:01:01.8]}
30... g4 {[%clk 0:00:13]} 31. hxg4 {[%clk 0:00:59.7]} 31... hxg4 {[%clk
0:00:13.9]} 32. Re4 {[%clk 0:00:59.7]} 32... Rc7 {[%clk 0:00:11.7]} 33. b5
{[%clk 0:00:56]} 33... Bf8 {[%clk 0:00:08.8]} 34. a4 {[%clk 0:00:55.3]} 34...
Rg7 {[%clk 0:00:05.3]} 35. Ne5 {[%clk 0:00:51.9]} 35... Rh7 {[%clk 0:00:03.8]}
36. Rxg4+ {[%clk 0:00:51.3]} 36... Kh8 {[%clk 0:00:03.8]} 37. Ng6+ {[%clk
0:00:48.6]} 37... Kg7 {[%clk 0:00:04.1]} 38. Nxf8+ {[%clk 0:00:48.3]} 38... Kxf8
{[%clk 0:00:05]} 39. Rxd4 {[%clk 0:00:48]} 39... Ke7 {[%clk 0:00:03.8]} 40. Rf4
{[%clk 0:00:47.3]} 40... Rh1 {[%clk 0:00:03.4]} 41. Rxf3 {[%clk 0:00:47.1]}
41... Ra1 {[%clk 0:00:04.3]} 42. Kd4 {[%clk 0:00:46.4]} 42... Rxa4 {[%clk
0:00:02.7]} 43. Kd5 {[%clk 0:00:46.6]} 43... Ra1 {[%clk 0:00:02.3]} 44. c5
{[%clk 0:00:46]} 1-0

[Event "Late-Titled-Tuesday-Blitz-November-28-2023"]
[Site "Chess.com"]
[Date "2023.11.28"]
[Round "4"]
[White "TanitoluwaAps116"]
[Black "Fortitudine"]
[Result "1-0"]
[WhiteElo "2690"]
[BlackElo "2372"]
[TimeControl "180+1"]
[EndTime "14:37:06 PST"]
[Termination "TanitoluwaAps116 won on time"]

1. e4 {[%clk 0:03:00.9]} 1... c5 {[%clk 0:02:59.2]} 2. Nf3 {[%clk 0:03:00.4]}
2... d6 {[%clk 0:02:59.3]} 3. Bb5+ {[%clk 0:02:58.2]} 3... Nd7 {[%clk
0:02:59.3]} 4. c3 {[%clk 0:02:54.4]} 4... a6 {[%clk 0:02:58.8]} 5. Bd3 {[%clk
0:02:53.1]} 5... g6 {[%clk 0:02:58.4]} 6. Bc2 {[%clk 0:02:52.2]} 6... Bg7 {[%clk
0:02:59]} 7. d4 {[%clk 0:02:52.3]} 7... cxd4 {[%clk 0:02:22]} 8. cxd4 {[%clk
0:02:53.2]} 8... e6 {[%clk 0:02:22.1]} 9. Nc3 {[%clk 0:02:53.1]} 9... Ne7 {[%clk
0:02:19.9]} 10. O-O {[%clk 0:02:50.6]} 10... O-O {[%clk 0:02:19]} 11. Bf4 {[%clk
0:02:50.2]} 11... e5 {[%clk 0:02:19.3]} 12. Bg5 {[%clk 0:02:47.7]} 12... exd4
{[%clk 0:02:04.1]} 13. Nd5 {[%clk 0:02:43.9]} 13... f6 {[%clk 0:02:00.9]} 14.
Bf4 {[%clk 0:02:20.3]} 14... Ne5 {[%clk 0:01:49.4]} 15. Nxe7+ {[%clk 0:02:04.9]}
15... Qxe7 {[%clk 0:01:47.8]} 16. Nxd4 {[%clk 0:02:05.8]} 16... Bd7 {[%clk
0:01:36]} 17. Bb3+ {[%clk 0:02:01.1]} 17... Kh8 {[%clk 0:01:35.9]} 18. Bd5
{[%clk 0:01:59.1]} 18... Rab8 {[%clk 0:01:26.5]} 19. Re1 {[%clk 0:01:57.3]}
19... Rfc8 {[%clk 0:01:22.9]} 20. Qb3 {[%clk 0:01:50.1]} 20... Bc6 {[%clk
0:01:11.9]} 21. Ne6 {[%clk 0:01:42]} 21... Bd7 {[%clk 0:00:33.2]} 22. Rad1
{[%clk 0:01:38.2]} 22... Re8 {[%clk 0:00:20.7]} 23. Nxg7 {[%clk 0:01:33.4]}
23... Kxg7 {[%clk 0:00:21.6]} 24. Bg3 {[%clk 0:01:30.4]} 24... Red8 {[%clk
0:00:20.3]} 25. f4 {[%clk 0:01:28.7]} 25... Nf7 {[%clk 0:00:20.8]} 26. e5 {[%clk
0:01:24.2]} 26... dxe5 {[%clk 0:00:20.2]} 27. Bxf7 {[%clk 0:01:19.8]} 27... Qxf7
{[%clk 0:00:20.5]} 28. fxe5 {[%clk 0:01:20.3]} 28... Qxb3 {[%clk 0:00:20.2]} 29.
axb3 {[%clk 0:01:20.3]} 29... Bg4 {[%clk 0:00:16.6]} 30. exf6+ {[%clk
0:01:10.9]} 30... Kxf6 {[%clk 0:00:13.9]} 31. Be5+ {[%clk 0:00:54.5]} 31... Kg5
{[%clk 0:00:11]} 32. h4+ {[%clk 0:00:47.6]} 32... Kh5 {[%clk 0:00:09.4]} 33. Rc1
{[%clk 0:00:46.9]} 33... Rbc8 {[%clk 0:00:09.5]} 34. Bc7 {[%clk 0:00:41.7]}
34... Re8 {[%clk 0:00:07.4]} 35. Rc5+ {[%clk 0:00:37.1]} 35... Bf5 {[%clk
0:00:07.7]} 36. Rec1 {[%clk 0:00:33.5]} 36... Re7 {[%clk 0:00:05.7]} 37. R1c4
{[%clk 0:00:23]} 37... Re1+ {[%clk 0:00:03.5]} 38. Kf2 {[%clk 0:00:22.2]} 38...
Re4 {[%clk 0:00:02.5]} 39. Rxe4 {[%clk 0:00:19.5]} 1-0

[Event "Late-Titled-Tuesday-Blitz-November-28-2023"]
[Site "Chess.com"]
[Date "2023.11.28"]
[Round "4"]
[White "RodokininEV"]
[Black "Sacbutt"]
[Result "1-0"]
[WhiteElo "2582"]
[BlackElo "2353"]
[TimeControl "180+1"]
[EndTime "14:37:08 PST"]
[Termination "RodokininEV won on time"]

1. e4 {[%clk 0:03:00.1]} 1... c5 {[%clk 0:02:59]} 2. Nf3 {[%clk 0:03:00.7]} 2...
d6 {[%clk 0:02:59.2]} 3. Bb5+ {[%clk 0:02:59.9]} 3... Bd7 {[%clk 0:02:58.8]} 4.
a4 {[%clk 0:02:59.5]} 4... Nf6 {[%clk 0:02:58]} 5. O-O {[%clk 0:02:57.9]} 5...
Bxb5 {[%clk 0:02:46.3]} 6. axb5 {[%clk 0:02:57.6]} 6... Nxe4 {[%clk 0:02:45.6]}
7. Re1 {[%clk 0:02:57.6]} 7... Nf6 {[%clk 0:02:45.7]} 8. d4 {[%clk 0:02:57.6]}
8... b6 {[%clk 0:02:19]} 9. c4 {[%clk 0:02:55.7]} 9... g6 {[%clk 0:02:10.9]} 10.
Nc3 {[%clk 0:02:53.8]} 10... Bg7 {[%clk 0:02:08.7]} 11. Bg5 {[%clk 0:02:53.5]}
11... O-O {[%clk 0:02:07.4]} 12. Qd2 {[%clk 0:02:53]} 12... Nbd7 {[%clk
0:02:05.9]} 13. d5 {[%clk 0:02:50.2]} 13... Re8 {[%clk 0:01:54.3]} 14. Bh6
{[%clk 0:02:48.4]} 14... Bxh6 {[%clk 0:01:46.6]} 15. Qxh6 {[%clk 0:02:49.3]}
15... e5 {[%clk 0:01:43.5]} 16. Ng5 {[%clk 0:02:47.1]} 16... Nf8 {[%clk
0:01:36.1]} 17. f4 {[%clk 0:02:41]} 17... exf4 {[%clk 0:01:28.5]} 18. Nf3 {[%clk
0:02:28.9]} 18... Nh5 {[%clk 0:01:11.4]} 19. Ne4 {[%clk 0:02:21.6]} 19... Qc7
{[%clk 0:00:58.4]} 20. Neg5 {[%clk 0:02:19.4]} 20... Ng7 {[%clk 0:00:51]} 21.
Nh3 {[%clk 0:02:06.5]} 21... Nf5 {[%clk 0:00:47.8]} 22. Qxf4 {[%clk 0:02:06.2]}
22... Kg7 {[%clk 0:00:32.6]} 23. g4 {[%clk 0:02:06.3]} 23... Ne7 {[%clk
0:00:27.2]} 24. Nfg5 {[%clk 0:02:01.6]} 24... Ng8 {[%clk 0:00:20.6]} 25. Nf2
{[%clk 0:01:53.5]} 25... h6 {[%clk 0:00:20.9]} 26. Nf3 {[%clk 0:01:53.2]} 26...
Qd7 {[%clk 0:00:19.4]} 27. h3 {[%clk 0:01:49.9]} 27... Rxe1+ {[%clk 0:00:18.5]}
28. Rxe1 {[%clk 0:01:50.1]} 28... Rd8 {[%clk 0:00:17.3]} 29. Nd3 {[%clk
0:01:41.7]} 29... g5 {[%clk 0:00:17.4]} 30. Qd2 {[%clk 0:01:36.1]} 30... Ng6
{[%clk 0:00:18]} 31. Qc3+ {[%clk 0:01:35.4]} 31... Kh7 {[%clk 0:00:16.4]} 32.
Nf2 {[%clk 0:01:31.6]} 32... Re8 {[%clk 0:00:16.8]} 33. Ne4 {[%clk 0:01:29.5]}
33... Nf4 {[%clk 0:00:15.3]} 34. Kh2 {[%clk 0:01:27.6]} 34... Kg6 {[%clk
0:00:14.3]} 35. Qc2 {[%clk 0:01:23.3]} 35... Kg7 {[%clk 0:00:13.8]} 36. Qc3+
{[%clk 0:01:23.5]} 36... Kg6 {[%clk 0:00:14.2]} 37. Kg3 {[%clk 0:01:22]} 37...
Qe7 {[%clk 0:00:09.5]} 38. h4 {[%clk 0:01:14.8]} 38... f6 {[%clk 0:00:06.5]} 39.
h5+ {[%clk 0:01:07.3]} 39... Kg7 {[%clk 0:00:06.6]} 40. Kf2 {[%clk 0:01:05.9]}
40... Qd7 {[%clk 0:00:04.8]} 41. Ng3 {[%clk 0:01:00.4]} 41... Rxe1 {[%clk
0:00:03.7]} 42. Qxe1 {[%clk 0:01:00.7]} 42... Qxg4 {[%clk 0:00:04.3]} 43. Qe4
{[%clk 0:00:56.8]} 43... Nh3+ {[%clk 0:00:04]} 44. Kg2 {[%clk 0:00:54.6]} 44...
Qxe4 {[%clk 0:00:04.1]} 45. Nxe4 {[%clk 0:00:55.5]} 45... Nf4+ {[%clk
0:00:04.6]} 46. Kf2 {[%clk 0:00:54.8]} 46... Nxh5 {[%clk 0:00:04.5]} 47. Nxd6
{[%clk 0:00:52.6]} 47... Nf4 {[%clk 0:00:03.8]} 48. Nc8 {[%clk 0:00:50]} 48...
h5 {[%clk 0:00:02.5]} 49. Nxa7 {[%clk 0:00:49.5]} 49... g4 {[%clk 0:00:01.9]}
50. Nh4 {[%clk 0:00:48.9]} 50... Ng6 {[%clk 0:00:01.4]} 51. Nf5+ {[%clk
0:00:46.9]} 51... Kf7 {[%clk 0:00:01.4]} 52. Nc8 {[%clk 0:00:47.8]} 1-0